{"text_format":"1","workbook":"xlsx","n_sheets":2,"sheets":["Books","Directory"],"not_rendered":{"charts":0,"images":0,"macros":1,"external_links":0,"defined_names":0,"comments":0,"pivot_tables":0},"unopened":[],"bounds":{"document_bytes":16777216,"sheet_cells":100000,"rows_first":2000,"rows_last":500,"rows_between":2000,"halvings":0,"cell_chars":16384,"cell_head_chars":4096},"cells_cut":0,"cells_raw":0,"read":"whole","date_system":"1900"}

{"sheet":"Books","index":0,"n_rows":75,"n_cols":6,"rows_kept":75,"cut":false,"hidden":false,"merged":[]}
["Book","Author","Series","Image Name","Type (Read/To Read/Favorite/Guilty Pleasure","Format"]
["Redemption by Fire","Andrew Grey","By Fire Series","Andrew_Grey_FS_01.jpg","Read","eBook"]
["Strengthened by Fire","Andrew Grey","By Fire Series","Andrew_Grey_FS_02.jpg","Read","eBook"]
["Burnished by Fire","Andrew Grey","By Fire Series","Andrew_Grey_FS_03.jpg","Read","eBook"]
["Heat Under Fire","Andrew Grey","By Fire Series","Andrew_Grey_FS_04.jpg","To Read","eBook"]
["Witchfire","Austin Oakley",null,"Austin_Oakley_HH_01_Witchfire.jpg","Read","eBook"]
["Fracture","Chad Lane","The Unscripted Series","Chad_Lane_US_01_Fracture.jpg","Read","eBook"]
["Tempt","Chad Lane","The Unscripted Series","Chad_Lane_US_02_Tempt.jpg","Read","eBook"]
["Faith","Chad Lane","The Unscripted Series","Chad_Lane_US_03_Faith.jpg","To Read","eBook"]
["The Case of the Cupid Curse & The Case of the Wicked Wolf","Amber Kell & RJ Scott","End Streeet","ESV_01.jpg","Read","eBook"]
["The Case of the Drangon's Dilemma & The Case of the Sinful Santa","Amber Kell & RJ Scott","End Streeet","ESV_02.jpg","Read","eBook"]
["The Case of the Purple Pearl & The Case of the Guilty Ghost","Amber Kell & RJ Scott","End Streeet","ESV_03.jpg","Read","eBook"]
["The Weight Is Over","Jason Collins",null,"Jason_Collins_The_Weight_is_Over.jpg","Favorite","eBook"]
["Weight for Love","Jason Collins","Worth the Weight","Jason_Collins_WW_01.jpg","Read","eBook"]
["Hard Tackle","Jason Collins","Worth the Weight","Jason_Collins_WW_02.jpg","Read","eBook"]
["The Bodyguard","Jason Collins","Worth the Weight","Jason_Collins_WW_03.jpg","Read","eBook"]
["The Angel Falls","Noah Harris","Boundless Love","Noah_Harris_BL_01.jpg","Read","eBook"]
["A Sin of Choice","Noah Harris","Boundless Love","Noah_Harris_BL_02.jpg","Read","eBook"]
["Ever After: A Gay Fairy Tale","Riley Hart & Christina Lee",null,"RH_CL_Ever_After.jpg","Guilty Pleasure","eBook"]
["Forever Moore: A Gay Gairy Tale","Riley Hart & Christina Lee",null,"RH_CL_Forever_Moore.jpg",null,"eBook"]
["Death Eternal","Richard Amos","Necromancer Rising","Richard_Amos_NR_01_Death_Eternal.jpg",null,"eBook"]
["Death Enraptured","Richard Amos","Necromancer Rising","Richard_Amos_NR_02_Death_Enraptured.jpg",null,"eBook"]
["Death Unbound","Richard Amos","Necromancer Rising","Richard_Amos_NR_03_Death_Unbound.jpg",null,"eBook"]
["Death Undone","Richard Amos","Necromancer Rising","Richard_Amos_NR_04_Death_Undone.jpg",null,"eBook"]
["Witch Eyes","Scott Tracy","Witch Eyes","Scott_Tracey_WE_01.jpg",null,"eBook"]
["Demon Eyes","Scott Tracy","Witch Eyes","Scott_Tracey_WE_02.jpg",null,"eBook"]
["Phantom Eyes","Scott Tracy","Witch Eyes","Scott_Tracey_WE_03.jpg",null,"eBook"]
["From This Moment On","Shania Twain",null,"Shania_Twain_FTFO.jpg","Guilty Pleasure","Hard Back/eBook"]
["Origin","AJ Sherwood & Jocelynn Drake","Scales N' Spells","AJS_JD_01_Origin.jpg","Read","eBook"]
["Breath","AJ Sherwood & Jocelynn Drake","Scales N' Spells","AJS_JD_02_Breath.jpg","Read","eBook"]
["Wish","AJ Sherwood & Jocelynn Drake","Scales N' Spells","AJS_JD_03_Wish.jpg","Read","eBook"]
["Blood","AJ Sherwood & Jocelynn Drake","Scales N' Spells","AJS_JD_04_Blood.jpg","Read","eBook"]
["Embers","AJ Sherwood & Jocelynn Drake","Scales N' Spells","AJS_JD_05_Embers.jpg","Read","eBook"]
["How to Shield an Assassin","AJ Sherwood","Unholy Trifecta","AJ_Sherwood_01_How_toShiled_an_Assassin.jpg","Read","eBook"]
["How to Steal a Thief","AJ Sherwood","Unholy Trifecta","AJ_Sherwood_02_How_to_Steal_a_Thief.jpg","Read","eBook"]
["How to Hack a Hacker","AJ Sherwood","Unholy Trifecta","AJ_Sherwood_03_How_to_Hack_a_Hacker.jpg","Read","eBook"]
["A Fae Coin Transported Me into Another World and Now I'm the Gay Holy Maden","AJ Sherwood","Fortune Favots the Fae","AJ_Sherwood_A_Fae_Coin.jpg","Favorite","eBook"]
["The Hitman's Guide to Making Friends and Finding Love","Alice Winters",null,"Alice_Winters_01_THG.jpg","Read","eBook"]
["The Hitman's Guide to Stayling Alive Despite Past Mistakes","Alice Winters",null,"Alice_Winters_02_THG.jpg","Read","eBook"]
["The Hitman's Guide to Tying the Knot Without Getting Shot","Alice Winters",null,"Alice_Winters_03_THG.jpg","Read","eBook"]
["The Former Assassin's Guide t Snagging a Reluctant Boyfriend","Alice Winters",null,"Alice_Winters_04_THG.jpg","To Read","eBook"]
["The Hitman's Guide to Righting Wrongs While Causing Mayhem","Alice Winters",null,"Alice_Winters_05_THG.jpg","Read","eBook"]
["The Hitman's Guide to Codenames and Ill-Gottn Gains","Alice Winters",null,"Alice_Winters_06_THG.jpg","Read","eBook"]
["The Mercenary's Guide to Mishpas and Romance","Alice Winters",null,"Alice_Winters_07_THG.jpg","To Read","eBook"]
["Hunt the Wood","Anna Fury & Amy Pennza","Beautiful Nightmares","Amy_Pennza_01_Hunt_the_Wood.jpg","Read","Audio/ebook"]
["Steal the Sky","Anna Fury & Amy Pennza","Beautiful Nightmares","Amy_Pennza_02_Steal_the_Sky.jpg","Read","Audio/ebook"]
["Sacrifice Sea","Anna Fury & Amy Pennza","Beautiful Nightmares","Amy_Pennza_03_Sacrifice_Sea.jpg","Read","Audio/ebook"]
["Temper the Flame","Anna Fury & Amy Pennza","Beautiful Nightmares","Amy_Pennza_04_Temper_the_Flame.jpg","Read","Audio/ebook"]
["Kiss the Slipper","Anna Fury & Amy Pennza","Beautiful Nightmares","Amy_Pennza_05_Kiss_the_Slipper.jpg","Read","Audio/ebook"]
["In the Wreckage","Hailey Turner",null,"Hailey_Turner_MH_01_In_The_Wreckage.jpg","Read","Audio"]
["In the Ruins","Hailey Turner",null,"Hailey_Turner_MH_02_In_the_Ruins.jpg","Read","Audio"]
["In the Shadows","Hailey Turner",null,"Hailey_Turner_MH_03_In_the_Shadows.jpg","To Read","Audio"]
["In the Blood","Hailey Turner",null,"Hailey_Turner_MH_04_In_the_Blood.jpg","To Read","Audio"]
["In the Requiem","Hailey Turner",null,"Hailey_Turner_MH_05_In_the_Requiem.jpg","To Read","Audio"]
["In the Solace","Hailey Turner",null,"Hailey_Turner_MH_06_In_the_Solace.jpg","To Read","Audio"]
["Crank Shaft","KM Neuhold",null,"KM_Neuhold_01_Crankshaft.jpg","Read","eBook"]
["Stroker","KM Neuhold",null,"KM_Neuhold_02_Stroker.jpg","Read","eBook"]
["Stick Shift","KM Neuhold",null,"KM_Neuhold_03_Stick_Shift.jpg","Read","eBook"]
["Rear Ended","KM Neuhold",null,"KM_Neuhold_04_Rear_Ended.jpg","Read","eBook"]
["Lube Job","KM Neuhold",null,"KM_Neuhold_05_Lube_Job.jpg","To Read","eBook"]
["Caulky","KM Neuhold",null,"KM_Neuhold_FBC_01_Caulky.jpg","Read","eBook"]
["Nailed","KM Neuhold",null,"KM_Neuhold_FBC_02_Nailed.jpg","Read","eBook"]
["Hardwood","KM Neuhold",null,"KM_Neuhold_FBC_03_Hardwood.jpg","Read","eBook"]
["Screwed","KM Neuhold",null,"KM_Neuhold_FBC_04_Screwed.jpg","Read","eBook"]
["Stud","KM Neuhold",null,"KM_Neuhold_FBC_05_Stud.jpg","Read","eBook"]
["Stripped","KM Neuhold",null,"KM_Neuhold_FBC_06_Stripped.jpg","Read","eBook"]
["Drilled","KM Neuhold",null,"KM_Neuhold_FBC_07_Drilled.jpg","Read","eBook"]
["Handy","KM Neuhold",null,"KM_Neuhold_FBC_08_Handy.jpg","To Read","eBook"]
["Devils Mark","Lark Taylor",null,"Lark_Taylor_01_Devils_Mark.jpg","Read","Audio"]
["Devil May Care","Lark Taylor",null,"Lark_Taylor_02_Devil_May_Care.jpg","Read","Audio"]
["Deal with the Devil","Lark Taylor",null,"Lark_Taylor_03_Deal_with_the_Devil.jpg","Reading","Audio"]
["Luck of the Devil","Lark Taylor",null,"Lark_Taylor_04_Luck_of_the_Devil.jpg","To Read","Audio"]
["Wolfs Unlukcy Fae","Michele Notaro","Fortune Favots the Fae","Michele_Notaro_The_Wolfs_Unlukcy_Fae.jpg","Read","eBook"]
["Slayers: A Buffyverse Story","Christopher Golden & Amber Benson",null,"Slayers_A_Buffyverse_Story.jpg","Guilty Pleasure","Audio"]
["Bound to the Wild Fae","Tavio Lark","Fortune Favots the Fae","Tavia_Lark_Bound_to_the_Wild_Fae.jpg","Read","eBook"]

{"sheet":"Directory","index":1,"n_rows":76,"n_cols":2,"rows_kept":76,"cut":false,"hidden":false,"merged":[]}
["C:\\Users\\chris\\OneDrive\\Documents\\Blackwatch Intelligence Division\\Website\\Book List\\Andrew_Grey_FS_01.jpg",{"$f":"IFERROR(RIGHT(A1,LEN(A1)-FIND(\"@\",SUBSTITUTE(A1,\"\\\",\"@\",LEN(A1)-LEN(SUBSTITUTE(A1,\"\\\",\"\"))))), A1)","v":"Andrew_Grey_FS_01.jpg"}]
["C:\\Users\\chris\\OneDrive\\Documents\\Blackwatch Intelligence Division\\Website\\Book List\\Andrew_Grey_FS_02.jpg",{"$f":"IFERROR(RIGHT(A2,LEN(A2)-FIND(\"@\",SUBSTITUTE(A2,\"\\\",\"@\",LEN(A2)-LEN(SUBSTITUTE(A2,\"\\\",\"\"))))), A2)","v":"Andrew_Grey_FS_02.jpg"}]
["C:\\Users\\chris\\OneDrive\\Documents\\Blackwatch Intelligence Division\\Website\\Book List\\Andrew_Grey_FS_03.jpg","Andrew_Grey_FS_03.jpg"]
["C:\\Users\\chris\\OneDrive\\Documents\\Blackwatch Intelligence Division\\Website\\Book List\\Andrew_Grey_FS_04.jpg","Andrew_Grey_FS_04.jpg"]
["C:\\Users\\chris\\OneDrive\\Documents\\Blackwatch Intelligence Division\\Website\\Book List\\Austin_Oakley_HH_01_Witchfire.jpg","Austin_Oakley_HH_01_Witchfire.jpg"]
["C:\\Users\\chris\\OneDrive\\Documents\\Blackwatch Intelligence Division\\Website\\Book List\\Chad_Lane_US_01_Fracture.jpg","Chad_Lane_US_01_Fracture.jpg"]
["C:\\Users\\chris\\OneDrive\\Documents\\Blackwatch Intelligence Division\\Website\\Book List\\Chad_Lane_US_02_Tempt.jpg","Chad_Lane_US_02_Tempt.jpg"]
["C:\\Users\\chris\\OneDrive\\Documents\\Blackwatch Intelligence Division\\Website\\Book List\\Chad_Lane_US_03_Faith.jpg","Chad_Lane_US_03_Faith.jpg"]
["C:\\Users\\chris\\OneDrive\\Documents\\Blackwatch Intelligence Division\\Website\\Book List\\ESV_01.jpg","ESV_01.jpg"]
["C:\\Users\\chris\\OneDrive\\Documents\\Blackwatch Intelligence Division\\Website\\Book List\\ESV_02.jpg","ESV_02.jpg"]
["C:\\Users\\chris\\OneDrive\\Documents\\Blackwatch Intelligence Division\\Website\\Book List\\Jason_Collins_The_Weight_is_Over.jpg","Jason_Collins_The_Weight_is_Over.jpg"]
["C:\\Users\\chris\\OneDrive\\Documents\\Blackwatch Intelligence Division\\Website\\Book List\\Jason_Collins_WW_01.jpg","Jason_Collins_WW_01.jpg"]
["C:\\Users\\chris\\OneDrive\\Documents\\Blackwatch Intelligence Division\\Website\\Book List\\Jason_Collins_WW_02.jpg","Jason_Collins_WW_02.jpg"]
["C:\\Users\\chris\\OneDrive\\Documents\\Blackwatch Intelligence Division\\Website\\Book List\\Jason_Collins_WW_03.jpg","Jason_Collins_WW_03.jpg"]
["C:\\Users\\chris\\OneDrive\\Documents\\Blackwatch Intelligence Division\\Website\\Book List\\Noah_Harris_BL_01.jpg","Noah_Harris_BL_01.jpg"]
["C:\\Users\\chris\\OneDrive\\Documents\\Blackwatch Intelligence Division\\Website\\Book List\\Noah_Harris_BL_02.jpg","Noah_Harris_BL_02.jpg"]
["C:\\Users\\chris\\OneDrive\\Documents\\Blackwatch Intelligence Division\\Website\\Book List\\Reading List.xlsm","Reading List.xlsm"]
["C:\\Users\\chris\\OneDrive\\Documents\\Blackwatch Intelligence Division\\Website\\Book List\\Reading List.xlsx","Reading List.xlsx"]
["C:\\Users\\chris\\OneDrive\\Documents\\Blackwatch Intelligence Division\\Website\\Book List\\RH_CL_Ever_After.jpg","RH_CL_Ever_After.jpg"]
["C:\\Users\\chris\\OneDrive\\Documents\\Blackwatch Intelligence Division\\Website\\Book List\\RH_CL_Forever_Moore.jpg","RH_CL_Forever_Moore.jpg"]
["C:\\Users\\chris\\OneDrive\\Documents\\Blackwatch Intelligence Division\\Website\\Book List\\Richard_Amos_NR_01_Death_Eternal.jpg","Richard_Amos_NR_01_Death_Eternal.jpg"]
["C:\\Users\\chris\\OneDrive\\Documents\\Blackwatch Intelligence Division\\Website\\Book List\\Richard_Amos_NR_02_Death_Enraptured.jpg","Richard_Amos_NR_02_Death_Enraptured.jpg"]
["C:\\Users\\chris\\OneDrive\\Documents\\Blackwatch Intelligence Division\\Website\\Book List\\Richard_Amos_NR_03_Death_Unbound.jpg","Richard_Amos_NR_03_Death_Unbound.jpg"]
["C:\\Users\\chris\\OneDrive\\Documents\\Blackwatch Intelligence Division\\Website\\Book List\\Richard_Amos_NR_04_Death_Undone.jpg","Richard_Amos_NR_04_Death_Undone.jpg"]
["C:\\Users\\chris\\OneDrive\\Documents\\Blackwatch Intelligence Division\\Website\\Book List\\Scott_Tracey_WE_01.jpg","Scott_Tracey_WE_01.jpg"]
["C:\\Users\\chris\\OneDrive\\Documents\\Blackwatch Intelligence Division\\Website\\Book List\\Scott_Tracey_WE_02.jpg","Scott_Tracey_WE_02.jpg"]
["C:\\Users\\chris\\OneDrive\\Documents\\Blackwatch Intelligence Division\\Website\\Book List\\Scott_Tracey_WE_03.jpg","Scott_Tracey_WE_03.jpg"]
["C:\\Users\\chris\\OneDrive\\Documents\\Blackwatch Intelligence Division\\Website\\Book List\\Shania_Twain_FTFO.jpg","Shania_Twain_FTFO.jpg"]
["C:\\Users\\chris\\OneDrive\\Documents\\Blackwatch Intelligence Division\\Website\\Book List\\~$Reading List.xlsm","~$Reading List.xlsm"]
["C:\\Users\\chris\\OneDrive\\Documents\\Blackwatch Intelligence Division\\Website\\Book List\\Uploaded\\AJS_JD_01_Origin.jpg","AJS_JD_01_Origin.jpg"]
["C:\\Users\\chris\\OneDrive\\Documents\\Blackwatch Intelligence Division\\Website\\Book List\\Uploaded\\AJS_JD_02_Breath.jpg","AJS_JD_02_Breath.jpg"]
["C:\\Users\\chris\\OneDrive\\Documents\\Blackwatch Intelligence Division\\Website\\Book List\\Uploaded\\AJS_JD_03_Wish.jpg","AJS_JD_03_Wish.jpg"]
["C:\\Users\\chris\\OneDrive\\Documents\\Blackwatch Intelligence Division\\Website\\Book List\\Uploaded\\AJS_JD_04_Blood.jpg","AJS_JD_04_Blood.jpg"]
["C:\\Users\\chris\\OneDrive\\Documents\\Blackwatch Intelligence Division\\Website\\Book List\\Uploaded\\AJS_JD_05_Embers.jpg","AJS_JD_05_Embers.jpg"]
["C:\\Users\\chris\\OneDrive\\Documents\\Blackwatch Intelligence Division\\Website\\Book List\\Uploaded\\AJ_Sherwood_01_How_toShiled_an_Assassin.jpg","AJ_Sherwood_01_How_toShiled_an_Assassin.jpg"]
["C:\\Users\\chris\\OneDrive\\Documents\\Blackwatch Intelligence Division\\Website\\Book List\\Uploaded\\AJ_Sherwood_02_How_to_Steal_a_Thief.jpg","AJ_Sherwood_02_How_to_Steal_a_Thief.jpg"]
["C:\\Users\\chris\\OneDrive\\Documents\\Blackwatch Intelligence Division\\Website\\Book List\\Uploaded\\AJ_Sherwood_03_How_to_Hack_a_Hacker.jpg","AJ_Sherwood_03_How_to_Hack_a_Hacker.jpg"]
["C:\\Users\\chris\\OneDrive\\Documents\\Blackwatch Intelligence Division\\Website\\Book List\\Uploaded\\AJ_Sherwood_A_Fae_Coin.jpg","AJ_Sherwood_A_Fae_Coin.jpg"]
["C:\\Users\\chris\\OneDrive\\Documents\\Blackwatch Intelligence Division\\Website\\Book List\\Uploaded\\Alice_Winters_01_THG.jpg","Alice_Winters_01_THG.jpg"]
["C:\\Users\\chris\\OneDrive\\Documents\\Blackwatch Intelligence Division\\Website\\Book List\\Uploaded\\Alice_Winters_02_THG.jpg","Alice_Winters_02_THG.jpg"]
["C:\\Users\\chris\\OneDrive\\Documents\\Blackwatch Intelligence Division\\Website\\Book List\\Uploaded\\Alice_Winters_03_THG.jpg","Alice_Winters_03_THG.jpg"]
["C:\\Users\\chris\\OneDrive\\Documents\\Blackwatch Intelligence Division\\Website\\Book List\\Uploaded\\Alice_Winters_04_THG.jpg","Alice_Winters_04_THG.jpg"]
["C:\\Users\\chris\\OneDrive\\Documents\\Blackwatch Intelligence Division\\Website\\Book List\\Uploaded\\Alice_Winters_05_THG.jpg","Alice_Winters_05_THG.jpg"]
["C:\\Users\\chris\\OneDrive\\Documents\\Blackwatch Intelligence Division\\Website\\Book List\\Uploaded\\Alice_Winters_06_THG.jpg","Alice_Winters_06_THG.jpg"]
["C:\\Users\\chris\\OneDrive\\Documents\\Blackwatch Intelligence Division\\Website\\Book List\\Uploaded\\Alice_Winters_07_THG.jpg","Alice_Winters_07_THG.jpg"]
["C:\\Users\\chris\\OneDrive\\Documents\\Blackwatch Intelligence Division\\Website\\Book List\\Uploaded\\Amy_Pennza_01_Hunt_the_Wood.jpg","Amy_Pennza_01_Hunt_the_Wood.jpg"]
["C:\\Users\\chris\\OneDrive\\Documents\\Blackwatch Intelligence Division\\Website\\Book List\\Uploaded\\Amy_Pennza_02_Steal_the_Sky.jpg","Amy_Pennza_02_Steal_the_Sky.jpg"]
["C:\\Users\\chris\\OneDrive\\Documents\\Blackwatch Intelligence Division\\Website\\Book List\\Uploaded\\Amy_Pennza_03_Sacrifice_Sea.jpg","Amy_Pennza_03_Sacrifice_Sea.jpg"]
["C:\\Users\\chris\\OneDrive\\Documents\\Blackwatch Intelligence Division\\Website\\Book List\\Uploaded\\Amy_Pennza_04_Temper_the_Flame.jpg","Amy_Pennza_04_Temper_the_Flame.jpg"]
["C:\\Users\\chris\\OneDrive\\Documents\\Blackwatch Intelligence Division\\Website\\Book List\\Uploaded\\Amy_Pennza_05_Kiss_the_Slipper.jpg","Amy_Pennza_05_Kiss_the_Slipper.jpg"]
["C:\\Users\\chris\\OneDrive\\Documents\\Blackwatch Intelligence Division\\Website\\Book List\\Uploaded\\Hailey_Turner_MH_01_In_The_Wreckage.jpg","Hailey_Turner_MH_01_In_The_Wreckage.jpg"]
["C:\\Users\\chris\\OneDrive\\Documents\\Blackwatch Intelligence Division\\Website\\Book List\\Uploaded\\Hailey_Turner_MH_02_In_the_Ruins.jpg","Hailey_Turner_MH_02_In_the_Ruins.jpg"]
["C:\\Users\\chris\\OneDrive\\Documents\\Blackwatch Intelligence Division\\Website\\Book List\\Uploaded\\Hailey_Turner_MH_03_In_the_Shadows.jpg","Hailey_Turner_MH_03_In_the_Shadows.jpg"]
["C:\\Users\\chris\\OneDrive\\Documents\\Blackwatch Intelligence Division\\Website\\Book List\\Uploaded\\Hailey_Turner_MH_04_In_the_Blood.jpg","Hailey_Turner_MH_04_In_the_Blood.jpg"]
["C:\\Users\\chris\\OneDrive\\Documents\\Blackwatch Intelligence Division\\Website\\Book List\\Uploaded\\Hailey_Turner_MH_05_In_the_Requiem.jpg","Hailey_Turner_MH_05_In_the_Requiem.jpg"]
["C:\\Users\\chris\\OneDrive\\Documents\\Blackwatch Intelligence Division\\Website\\Book List\\Uploaded\\Hailey_Turner_MH_06_In_the_Solace.jpg","Hailey_Turner_MH_06_In_the_Solace.jpg"]
["C:\\Users\\chris\\OneDrive\\Documents\\Blackwatch Intelligence Division\\Website\\Book List\\Uploaded\\KM_Neuhold_01_Crankshaft.jpg","KM_Neuhold_01_Crankshaft.jpg"]
["C:\\Users\\chris\\OneDrive\\Documents\\Blackwatch Intelligence Division\\Website\\Book List\\Uploaded\\KM_Neuhold_02_Stroker.jpg","KM_Neuhold_02_Stroker.jpg"]
["C:\\Users\\chris\\OneDrive\\Documents\\Blackwatch Intelligence Division\\Website\\Book List\\Uploaded\\KM_Neuhold_03_Stick_Shift.jpg","KM_Neuhold_03_Stick_Shift.jpg"]
["C:\\Users\\chris\\OneDrive\\Documents\\Blackwatch Intelligence Division\\Website\\Book List\\Uploaded\\KM_Neuhold_04_Rear_Ended.jpg","KM_Neuhold_04_Rear_Ended.jpg"]
["C:\\Users\\chris\\OneDrive\\Documents\\Blackwatch Intelligence Division\\Website\\Book List\\Uploaded\\KM_Neuhold_05_Lube_Job.jpg","KM_Neuhold_05_Lube_Job.jpg"]
["C:\\Users\\chris\\OneDrive\\Documents\\Blackwatch Intelligence Division\\Website\\Book List\\Uploaded\\KM_Neuhold_FBC_01_Caulky.jpg","KM_Neuhold_FBC_01_Caulky.jpg"]
["C:\\Users\\chris\\OneDrive\\Documents\\Blackwatch Intelligence Division\\Website\\Book List\\Uploaded\\KM_Neuhold_FBC_02_Nailed.jpg","KM_Neuhold_FBC_02_Nailed.jpg"]
["C:\\Users\\chris\\OneDrive\\Documents\\Blackwatch Intelligence Division\\Website\\Book List\\Uploaded\\KM_Neuhold_FBC_03_Hardwood.jpg","KM_Neuhold_FBC_03_Hardwood.jpg"]
["C:\\Users\\chris\\OneDrive\\Documents\\Blackwatch Intelligence Division\\Website\\Book List\\Uploaded\\KM_Neuhold_FBC_04_Screwed.jpg","KM_Neuhold_FBC_04_Screwed.jpg"]
["C:\\Users\\chris\\OneDrive\\Documents\\Blackwatch Intelligence Division\\Website\\Book List\\Uploaded\\KM_Neuhold_FBC_05_Stud.jpg",{"$f":"IFERROR(RIGHT(A66,LEN(A66)-FIND(\"@\",SUBSTITUTE(A66,\"\\\",\"@\",LEN(A66)-LEN(SUBSTITUTE(A66,\"\\\",\"\"))))), A66)","v":"KM_Neuhold_FBC_05_Stud.jpg"}]
["C:\\Users\\chris\\OneDrive\\Documents\\Blackwatch Intelligence Division\\Website\\Book List\\Uploaded\\KM_Neuhold_FBC_06_Stripped.jpg","KM_Neuhold_FBC_06_Stripped.jpg"]
["C:\\Users\\chris\\OneDrive\\Documents\\Blackwatch Intelligence Division\\Website\\Book List\\Uploaded\\KM_Neuhold_FBC_07_Drilled.jpg","KM_Neuhold_FBC_07_Drilled.jpg"]
["C:\\Users\\chris\\OneDrive\\Documents\\Blackwatch Intelligence Division\\Website\\Book List\\Uploaded\\KM_Neuhold_FBC_08_Handy.jpg","KM_Neuhold_FBC_08_Handy.jpg"]
["C:\\Users\\chris\\OneDrive\\Documents\\Blackwatch Intelligence Division\\Website\\Book List\\Uploaded\\Lark_Taylor_01_Devils_Mark.jpg","Lark_Taylor_01_Devils_Mark.jpg"]
["C:\\Users\\chris\\OneDrive\\Documents\\Blackwatch Intelligence Division\\Website\\Book List\\Uploaded\\Lark_Taylor_02_Devil_May_Care.jpg","Lark_Taylor_02_Devil_May_Care.jpg"]
["C:\\Users\\chris\\OneDrive\\Documents\\Blackwatch Intelligence Division\\Website\\Book List\\Uploaded\\Lark_Taylor_03_Deal_with_the_Devil.jpg","Lark_Taylor_03_Deal_with_the_Devil.jpg"]
["C:\\Users\\chris\\OneDrive\\Documents\\Blackwatch Intelligence Division\\Website\\Book List\\Uploaded\\Lark_Taylor_04_Luck_of_the_Devil.jpg","Lark_Taylor_04_Luck_of_the_Devil.jpg"]
["C:\\Users\\chris\\OneDrive\\Documents\\Blackwatch Intelligence Division\\Website\\Book List\\Uploaded\\Michele_Notaro_The_Wolfs_Unlukcy_Fae.jpg","Michele_Notaro_The_Wolfs_Unlukcy_Fae.jpg"]
["C:\\Users\\chris\\OneDrive\\Documents\\Blackwatch Intelligence Division\\Website\\Book List\\Uploaded\\Slayers_A_Buffyverse_Story.jpg","Slayers_A_Buffyverse_Story.jpg"]
["C:\\Users\\chris\\OneDrive\\Documents\\Blackwatch Intelligence Division\\Website\\Book List\\Uploaded\\Tavia_Lark_Bound_to_the_Wild_Fae.jpg","Tavia_Lark_Bound_to_the_Wild_Fae.jpg"]